fUST/lending_fUST_20250713
["ID","MTS","AMOUNT","RATE_DAILY","PERIOD"]
[371567187,1752357058716,-3681.33,0.00019178,2]
[371567189,1752357058726,-3587.3,0.00019178,2]
[371567191,1752357058735,-460.0,0.00019178,2]
[371567193,1752357058744,-479.83,0.00019178,2]
[371567195,1752357058753,-2620.87,0.00019178,2]
[371567197,1752357058762,-666.55,0.00019178,2]
[371567199,1752357058771,-513.37,0.00019178,2]
[371567201,1752357058781,-2216.81,0.00019178,2]
[371567203,1752357058791,-460.0,0.00019178,2]
[371567205,1752357058801,-518.4,0.00019178,2]
[371567207,1752357058810,-460.0,0.00019178,2]
[371567209,1752357058819,-548.97,0.00019178,2]
[371567211,1752357058828,-460.0,0.00019178,2]
[371567213,1752357058838,-765.143976,0.00019178,2]
[371567215,1752357058847,-151.0,0.00019178,2]
[371567217,1752357058857,-605.1,0.00019178,2]
[371567219,1752357058866,-3142.18,0.00019178,2]
[371567221,1752357058875,-765.143976,0.00019178,2]
[371567223,1752357058884,-460.0,0.00019178,2]
[371567225,1752357058893,-460.0,0.00019178,2]
[371567228,1752357058902,-5920.24,0.00019178,2]
[371567229,1752357058912,-875.58,0.00019178,2]
[371567231,1752357058921,-460.0,0.00019178,2]
[371567233,1752357058931,-460.0,0.00019178,2]
[371567236,1752357058942,-556.21,0.00019178,2]
[371567238,1752357058951,-151.0,0.00019178,2]
[371567240,1752357058961,-5429.91,0.00019178,2]
[371567242,1752357058973,-460.0,0.00019178,2]
[371567243,1752357058983,-460.0,0.00019178,2]
[371567246,1752357058993,-460.0,0.00019178,2]
[371567247,1752357059003,-249.37626,0.00019178,2]
[371567249,1752357059013,-460.0,0.00019178,2]
[371567251,1752357059022,-460.0,0.00019178,2]
[371567254,1752357059032,-249.37626,0.00019178,2]
[371567256,1752357059041,-634.32,0.00019178,2]
[371567258,1752357059051,-151.0,0.00019178,2]
[371567259,1752357059060,-151.0,0.00019178,2]
[371567262,1752357059071,-1846.78,0.00019178,2]
[371567263,1752357059080,-1044.98,0.00019178,2]
[371567265,1752357059090,-460.0,0.00019178,2]
[371567268,1752357059099,-5000.0,0.00019178,2]
[371567269,1752357059108,-5000.0,0.00019178,2]
[371567271,1752357059118,-5000.0,0.00019178,2]
[371567273,1752357059127,-5000.0,0.00019178,2]
[371567275,1752357059137,-5000.0,0.00019178,2]
[371567277,1752357059146,-2010.35104184,0.00019178,2]
[371567279,1752357059155,-666.0,0.00019178,2]
[371567281,1752357059164,-754.681604,0.00019178,2]
[371567283,1752357059173,-460.0,0.00019179,2]
[371567285,1752357059182,-4705.72,0.000192,2]
[371567287,1752357059192,-842.53,0.000192,2]
[371567290,1752357059202,-34784.13,0.000192,2]
[371567291,1752357059213,-151.0,0.000192,2]
[371567293,1752357059223,-151.0,0.000192,2]
[371567295,1752357059233,-151.0,0.000192,2]
[371567297,1752357059242,-5000.0,0.00019214,2]
[371567299,1752357059252,-151.0,0.000193,2]
[371567301,1752357059262,-1500.0,0.00019301,2]
[371567303,1752357059272,-2000.0,0.00019301,2]
[371567306,1752357059282,-2000.0,0.00019301,2]
[371567308,1752357059292,-500.0,0.00019301,2]
[371567309,1752357059302,-522.41606942,0.00019301,2]
[371567312,1752357059312,-151.0,0.00019328,2]
[371567314,1752357059321,-151.0,0.00019328,2]
[371567315,1752357059330,-151.0,0.00019328,2]
[371567317,1752357059339,-151.0,0.00019329,2]
[371567319,1752357059348,-151.0,0.00019329,2]
[371567321,1752357059358,-208.720933,0.00019329,2]
[371567324,1752357059367,-208.720933,0.00019329,2]
[371567326,1752357059377,-151.0,0.00019329,2]
[371567328,1752357059387,-151.0,0.00019329,2]
[371567329,1752357059396,-151.0,0.00019329,2]
[371567342,1752357059504,-151.0,0.00019329,2]
[371567344,1752357059514,-158.938451,0.00019329,2]
[371567346,1752357059523,-158.938451,0.00019329,2]
[371567348,1752357059532,-151.0,0.00019329,2]
[371567350,1752357059541,-1074.333574,0.00019329,2]
[371567352,1752357059551,-151.0,0.00019329,2]
[371567354,1752357059560,-1074.333574,0.00019329,2]
[371567356,1752357059569,-151.0,0.00019329,2]
[371567358,1752357059578,-368.105322,0.00019329,2]
[371567359,1752357059587,-368.105322,0.00019329,2]
[371567360,1752357059597,-151.0,0.00019329,2]
[371567361,1752357059606,-154.156843,0.00019329,2]
[371567362,1752357059615,-151.0,0.00019329,2]
[371567363,1752357059625,-765.143976,0.00019329,2]
[371567364,1752357059634,-765.143976,0.00019329,2]
[371567365,1752357059644,-260.915415,0.00019329,2]
[371567366,1752357059653,-249.37626,0.00019329,2]
[371567367,1752357059662,-249.37626,0.00019329,2]
[371567368,1752357059672,-100000.0,0.00019329,2]
[371567370,1752357059681,-500.0,0.00019373,2]
[371567372,1752357059691,-500.0,0.00019373,2]
[371567374,1752357059700,-500.87762735,0.00019373,2]
[371567376,1752357059711,-500.63262251,0.00019373,2]
[371567378,1752357059720,-151.0,0.00019373,2]
[371567380,1752357059730,-151.0,0.00019373,2]
[371567382,1752357059739,-151.0,0.00019373,2]
[371567384,1752357059748,-3924.06288853,0.00019383,2]
[371567386,1752357059758,-151.0,0.00019452,2]
[371567388,1752357059768,-460.0,0.00019452,2]
[371567390,1752357059777,-460.0,0.00019452,2]
[371567392,1752357059786,-151.0,0.00019452,2]
[371567394,1752357059796,-151.0,0.00019452,2]
[371567396,1752357059806,-151.0,0.00019452,2]
[371567398,1752357059817,-151.0,0.00019452,2]
[371567400,1752357059826,-155.275634,0.00019452,2]
[371567402,1752357059835,-264.189425,0.00019452,2]
[371567404,1752357059844,-264.189425,0.00019452,2]
[371567406,1752357059854,-460.0,0.00019452,2]
[371567408,1752357059863,-151.0,0.00019452,2]
[371567410,1752357059872,-151.0,0.00019452,2]
[371567413,1752357059882,-151.0,0.00019452,2]
[371567415,1752357059891,-460.0,0.00019452,2]
[371567417,1752357059900,-598.62,0.00019452,2]
[371567419,1752357059909,-221.648769,0.00019452,2]
[371567421,1752357059919,-460.0,0.00019452,2]
[371567423,1752357059928,-460.0,0.00019452,2]
[371567424,1752357059937,-460.0,0.00019452,2]
[371567427,1752357059947,-1796.12,0.00019452,2]
[371567429,1752357059956,-460.0,0.00019452,2]
[371567431,1752357059965,-1833.61,0.00019452,2]
[371567432,1752357059974,-460.0,0.00019452,2]
[371567435,1752357059983,-460.0,0.00019452,2]
[371567437,1752357059992,-3698.67,0.00019452,2]
[371567438,1752357060002,-726.0,0.00019452,2]
[371567441,1752357060011,-2274.87,0.00019452,2]
[371567443,1752357060021,-699.31,0.00019452,2]
[371567445,1752357060030,-995.78,0.00019452,2]
[371567447,1752357060040,-460.0,0.00019452,2]
[371567449,1752357060049,-577.86,0.00019452,2]
[371567451,1752357060059,-460.0,0.00019452,2]
[371567453,1752357060069,-460.0,0.00019452,2]
[371567455,1752357060078,-648.79,0.00019452,2]
[371567457,1752357060088,-647.47,0.00019452,2]
[371567459,1752357060097,-1247.94,0.00019452,2]
[371567461,1752357060107,-460.0,0.00019452,2]
[371567463,1752357060117,-813.18,0.00019452,2]
[371567465,1752357060126,-460.0,0.00019452,2]
[371567467,1752357060135,-561.31,0.00019452,2]
[371567469,1752357060145,-460.31,0.00019452,2]
[371567471,1752357060154,-470.2,0.00019452,2]
[371567473,1752357060164,-3681.33,0.00019452,2]
[371567475,1752357060173,-3587.3,0.00019452,2]
[371567477,1752357060183,-460.0,0.00019452,2]
[371567479,1752357060192,-479.83,0.00019452,2]
[371567481,1752357060202,-2620.87,0.00019452,2]
[371567483,1752357060213,-666.55,0.00019452,2]
[371567485,1752357060224,-513.37,0.00019452,2]
[371567487,1752357060234,-2216.81,0.00019452,2]
[371567489,1752357060243,-460.0,0.00019452,2]
[371567491,1752357060255,-518.4,0.00019452,2]
[371567493,1752357060264,-460.0,0.00019452,2]
[371567495,1752357060274,-548.97,0.00019452,2]
[371567497,1752357060284,-460.0,0.00019452,2]
[371567499,1752357060296,-605.1,0.00019452,2]
[371567501,1752357060306,-3142.18,0.00019452,2]
[371567504,1752357060316,-460.0,0.00019452,2]
[371567506,1752357060326,-460.0,0.00019452,2]
[371567508,1752357060336,-5920.24,0.00019452,2]
[371567510,1752357060345,-875.58,0.00019452,2]
[371567512,1752357060354,-460.0,0.00019452,2]
[371567514,1752357060364,-556.21,0.00019452,2]
[371567516,1752357060373,-5429.91,0.00019452,2]
[371567517,1752357060382,-460.0,0.00019452,2]
[371567520,1752357060392,-460.0,0.00019452,2]
[371567522,1752357060401,-460.0,0.00019452,2]
[371567524,1752357060410,-460.0,0.00019452,2]
[371567526,1752357060420,-460.0,0.00019452,2]
[371567528,1752357060429,-634.32,0.00019452,2]
[371567530,1752357060439,-1846.78,0.00019452,2]
[371567532,1752357060448,-1044.98,0.00019452,2]
[371567534,1752357060457,-460.0,0.00019452,2]
[371567536,1752357060467,-323.37367279,0.00019453,2]
[371567538,1752357060476,-3000.0,0.00019512,2]
[371567540,1752357060485,-152.40841546,0.00019622,2]
[371567542,1752357060495,-355.61963609,0.00019622,2]
[371567544,1752357060505,-587.0,0.00019631,2]
[371567546,1752357060515,-3924.06288853,0.00019693,2]
[371567548,1752357060524,-151.0,0.000197,2]
[371567550,1752357060533,-460.0,0.00019726,2]
[371567552,1752357060543,-595.64,0.00019726,2]
[371567554,1752357060553,-460.0,0.00019726,2]
[371567556,1752357060562,-460.0,0.00019726,2]
[371567558,1752357060572,-151.0,0.00019726,2]
[371567560,1752357060582,-598.62,0.00019726,2]
[371567562,1752357060591,-460.0,0.00019726,2]
[371567564,1752357060601,-460.0,0.00019726,2]
[371567566,1752357060610,-460.0,0.00019726,2]
[371567568,1752357060619,-1262.657327,0.00019726,2]
[371567570,1752357060629,-1262.657327,0.00019726,2]
[371567572,1752357060638,-1796.12,0.00019726,2]
[371567574,1752357060648,-460.0,0.00019726,2]
[371567576,1752357060657,-1833.61,0.00019726,2]
[371567578,1752357060667,-460.0,0.00019726,2]
[371567580,1752357060677,-460.0,0.00019726,2]
[371567582,1752357060686,-3698.67,0.00019726,2]
[371567584,1752357060696,-726.0,0.00019726,2]
[371567586,1752357060705,-2274.87,0.00019726,2]
[371567588,1752357060715,-699.31,0.00019726,2]
[371567590,1752357060724,-995.78,0.00019726,2]
[371567592,1752357060733,-222.32,0.00019726,2]
[371567594,1752357060743,-460.0,0.00019726,2]
[371567596,1752357060752,-151.0,0.00019726,2]
[371567598,1752357060761,-460.0,0.00019726,2]
[371567601,1752357060770,-648.79,0.00019726,2]
[371567603,1752357060780,-647.47,0.00019726,2]
[371567605,1752357060789,-1247.94,0.00019726,2]
[371567607,1752357060797,-312.2546106,0.00019726,2]
[371567609,1752357060807,-813.18,0.00019726,2]
[371567611,1752357060816,-460.0,0.00019726,2]
[371567613,1752357060825,-561.31,0.00019726,2]
[371567615,1752357060835,-460.31,0.00019726,2]
[371567617,1752357060844,-470.2,0.00019726,2]
[371567619,1752357060853,-3681.33,0.00019726,2]
[371567621,1752357060862,-3587.3,0.00019726,2]
[371567623,1752357060871,-460.0,0.00019726,2]
[371567625,1752357060880,-151.0,0.00019726,2]
[371567627,1752357060889,-479.83,0.00019726,2]
[371567629,1752357060898,-2620.87,0.00019726,2]
[371567631,1752357060908,-666.55,0.00019726,2]
[371567633,1752357060917,-513.37,0.00019726,2]
[371567635,1752357060926,-2216.81,0.00019726,2]
[371567637,1752357060935,-460.0,0.00019726,2]
[371567639,1752357060944,-518.4,0.00019726,2]
[371567641,1752357060954,-460.0,0.00019726,2]
[371567643,1752357060964,-479.491969,0.00019726,2]
[371567645,1752357060973,-548.97,0.00019726,2]
[371567647,1752357060983,-460.0,0.00019726,2]
[371567649,1752357060992,-479.491969,0.00019726,2]
[371567651,1752357061001,-765.143976,0.00019726,2]
[371567653,1752357061010,-605.1,0.00019726,2]
[371567655,1752357061019,-3142.18,0.00019726,2]
[371567657,1752357061029,-460.0,0.00019726,2]
[371567659,1752357061038,-765.143976,0.00019726,2]
[371567661,1752357061047,-460.0,0.00019726,2]
[371567663,1752357061057,-5920.24,0.00019726,2]
[371567665,1752357061067,-875.58,0.00019726,2]
[371567667,1752357061076,-460.0,0.00019726,2]
[371567669,1752357061085,-556.21,0.00019726,2]
[371567671,1752357061095,-5429.91,0.00019726,2]
[371567673,1752357061104,-460.0,0.00019726,2]
[371567675,1752357061113,-460.0,0.00019726,2]
[371567677,1752357061122,-460.0,0.00019726,2]
[371567679,1752357061132,-460.0,0.00019726,2]
[371567681,1752357061142,-460.0,0.00019726,2]
[371567683,1752357061151,-634.32,0.00019726,2]
[371567685,1752357061161,-1846.78,0.00019726,2]
[371567687,1752357061169,-1044.98,0.00019726,2]
[371567689,1752357061179,-151.0,0.000198,2]
[371567691,1752357061190,-483.444475,0.00019849,2]
[371567693,1752357061199,-1023.16852624,0.00019849,2]
[371567695,1752357061210,-1376.46142752,0.000199,2]
[371567697,1752357061222,-1000.0,0.00019921,2]
[371567699,1752357061231,-151.0,0.00019921,2]
[371567701,1752357061240,-151.0,0.00019921,2]
[371567703,1752357061250,-500.0,0.00019973,2]
[371567705,1752357061260,-500.0,0.00019973,2]
[371567707,1752357061270,-500.0,0.00019973,2]
[371567709,1752357061279,-500.0,0.00019973,2]
[371567711,1752357061289,-177.8544682,0.00019973,2]
[371567713,1752357061298,-159.5742583,0.00019973,2]
[371567715,1752357061308,-576.333126,0.00019973,2]
[371567717,1752357061317,-8628.39494778,0.0002,20]
[371567719,1752357061327,-362.2537436,0.0002,2]
[371567721,1752357061337,-40000.0,0.0002,2]
[371567723,1752357061346,-839.50569351,0.0002,2]
[371567725,1752357061355,-3481.70383816,0.0002,2]
[371567727,1752357061364,-2183.81486075,0.0002,2]
[371567729,1752357061374,-151.0,0.0002,2]
[371567731,1752357061383,-151.0,0.0002,2]
[371567733,1752357061393,-151.0,0.0002,2]
[371567735,1752357061402,-151.0,0.0002,2]
[371567737,1752357061411,-208.720933,0.0002,2]
[371567739,1752357061420,-208.720933,0.0002,2]
[371567741,1752357061430,-151.0,0.0002,2]
[371567743,1752357061439,-194.54,0.0002,2]
[371567745,1752357061449,-460.0,0.0002,2]
[371567747,1752357061459,-151.0,0.0002,2]
[371567749,1752357061468,-151.0,0.0002,2]
[371567751,1752357061477,-460.0,0.0002,2]
[371567753,1752357061486,-158.938451,0.0002,2]
[371567755,1752357061496,-158.938451,0.0002,2]
[371567757,1752357061505,-598.62,0.0002,2]
[371567759,1752357061515,-151.0,0.0002,2]
[371567761,1752357061524,-1074.333574,0.0002,2]
[371567763,1752357061533,-151.0,0.0002,2]
[371567765,1752357061542,-1074.333574,0.0002,2]
[371567767,1752357061551,-151.0,0.0002,2]
[371567769,1752357061560,-460.0,0.0002,2]
[371567771,1752357061569,-555.49,0.0002,2]
[371567773,1752357061578,-460.0,0.0002,2]
[371567775,1752357061587,-1796.12,0.0002,2]
[371567777,1752357061595,-460.0,0.0002,2]
[371567779,1752357061605,-1833.61,0.0002,2]
[371567780,1752357061614,-368.105322,0.0002,2]
[371567782,1752357061623,-368.105322,0.0002,2]
[371567784,1752357061632,-460.0,0.0002,2]
[371567786,1752357061641,-460.0,0.0002,2]
[371567788,1752357061650,-3698.67,0.0002,2]
[371567790,1752357061659,-726.0,0.0002,2]
[371567792,1752357061669,-2274.87,0.0002,2]
[371567794,1752357061678,-958.32770218,0.0002,2]
[371567796,1752357061687,-699.31,0.0002,2]
[371567797,1752357061697,-995.78,0.0002,2]
[371567799,1752357061706,-460.0,0.0002,2]
[371567801,1752357061716,-151.0,0.0002,2]
[371567803,1752357061725,-460.0,0.0002,2]
[371567805,1752357061734,-648.79,0.0002,2]
[371567807,1752357061744,-647.47,0.0002,2]
[371567809,1752357061754,-1247.94,0.0002,2]
[371567811,1752357061763,-813.18,0.0002,2]
[371567823,1752357061869,-460.0,0.0002,2]
[371567825,1752357061879,-561.31,0.0002,2]
[371567827,1752357061888,-460.31,0.0002,2]
[371567829,1752357061897,-470.2,0.0002,2]
[371567831,1752357061906,-3681.33,0.0002,2]
[371567833,1752357061917,-460.0,0.0002,2]
[371567835,1752357061926,-3587.3,0.0002,2]
[371567837,1752357061936,-151.0,0.0002,2]
[371567839,1752357061946,-479.83,0.0002,2]
[371567841,1752357061955,-2620.87,0.0002,2]
[371567843,1752357061964,-666.55,0.0002,2]
[371567845,1752357061973,-513.37,0.0002,2]
[371567847,1752357061983,-2216.81,0.0002,2]
[371567849,1752357061992,-460.0,0.0002,2]
[371567850,1752357062001,-518.4,0.0002,2]
[371567852,1752357062010,-460.0,0.0002,2]
[371567854,1752357062020,-548.97,0.0002,2]
[371567856,1752357062030,-460.0,0.0002,2]
[371567858,1752357062039,-605.1,0.0002,2]
[371567860,1752357062048,-3142.18,0.0002,2]
[371567862,1752357062058,-460.0,0.0002,2]
[371567864,1752357062068,-460.0,0.0002,2]
[371567866,1752357062077,-5920.24,0.0002,2]
[371567868,1752357062086,-875.58,0.0002,2]
[371567870,1752357062095,-194.84,0.0002,2]
[371567872,1752357062104,-556.21,0.0002,2]
[371567874,1752357062114,-5429.91,0.0002,2]
[371567876,1752357062123,-460.0,0.0002,2]
[371567878,1752357062132,-460.0,0.0002,2]
[371567880,1752357062142,-460.0,0.0002,2]
[371567882,1752357062153,-249.37626,0.0002,2]
[371567884,1752357062163,-460.0,0.0002,2]
[371567886,1752357062173,-460.0,0.0002,2]
[371567888,1752357062182,-249.37626,0.0002,2]
[371567890,1752357062192,-634.32,0.0002,2]
[371567892,1752357062201,-1846.78,0.0002,2]
[371567894,1752357062212,-1044.98,0.0002,2]
[371567896,1752357062223,-3924.06288853,0.00020003,2]
[371567898,1752357062233,-226.993,0.00020004,2]
[371567900,1752357062242,-151.0,0.00020004,2]
[371567902,1752357062251,-3500.0,0.0002006,2]
[371567903,1752357062261,-151.0,0.00020099,2]
[371567905,1752357062271,-200.532895,0.00020099,2]
[371567907,1752357062280,-208.720933,0.00020099,2]
[371567909,1752357062291,-151.0,0.00020099,2]
[371567911,1752357062301,-208.720933,0.00020099,2]
[371567913,1752357062310,-460.0,0.00020273,2]
[371567915,1752357062320,-460.0,0.00020273,2]
[371567917,1752357062330,-598.62,0.00020273,2]
[371567919,1752357062339,-460.0,0.00020273,2]
[371567921,1752357062348,-460.0,0.00020273,2]
[371567923,1752357062358,-1796.12,0.00020273,2]
[371567925,1752357062367,-460.0,0.00020273,2]
[371567927,1752357062376,-1833.61,0.00020273,2]
[371567929,1752357062385,-460.0,0.00020273,2]
[371567931,1752357062394,-460.0,0.00020273,2]
[371567933,1752357062403,-3698.67,0.00020273,2]
[371567935,1752357062413,-726.0,0.00020273,2]
[371567937,1752357062422,-2274.87,0.00020273,2]
[371567939,1752357062431,-699.31,0.00020273,2]
[371567941,1752357062441,-995.78,0.00020273,2]
[371567942,1752357062450,-460.0,0.00020273,2]
[371567944,1752357062459,-460.0,0.00020273,2]
[371567946,1752357062469,-648.79,0.00020273,2]
[371567948,1752357062478,-647.47,0.00020273,2]
[371567950,1752357062487,-1247.94,0.00020273,2]
[371567952,1752357062496,-813.18,0.00020273,2]
[371567954,1752357062505,-460.0,0.00020273,2]
[371567956,1752357062515,-561.31,0.00020273,2]
[371567958,1752357062524,-460.31,0.00020273,2]
[371567960,1752357062534,-470.2,0.00020273,2]
[371567962,1752357062544,-3681.33,0.00020273,2]
[371567964,1752357062554,-249.60882055,0.00020273,2]
[371567966,1752357062565,-3587.3,0.00020273,2]
[371567968,1752357062577,-479.83,0.00020273,2]
[371567970,1752357062588,-2620.87,0.00020273,2]
[371567972,1752357062597,-666.55,0.00020273,2]
[371567974,1752357062607,-513.37,0.00020273,2]
[371567975,1752357062616,-2216.81,0.00020273,2]
[371567977,1752357062625,-389.71741587,0.00020273,2]
[371567979,1752357062636,-518.4,0.00020273,2]
[371567981,1752357062645,-460.0,0.00020273,2]
[371567983,1752357062654,-548.97,0.00020273,2]
[371567985,1752357062664,-460.0,0.00020273,2]
[371567987,1752357062673,-765.143976,0.00020273,2]
[371567989,1752357062682,-605.1,0.00020273,2]
[371567991,1752357062691,-3142.18,0.00020273,2]
[371567993,1752357062701,-460.0,0.00020273,2]
[371567995,1752357062711,-765.143976,0.00020273,2]
[371567997,1752357062720,-460.0,0.00020273,2]
[371567999,1752357062730,-5920.24,0.00020273,2]
[371568001,1752357062739,-875.58,0.00020273,2]
[371568003,1752357062748,-556.21,0.00020273,2]
[371568005,1752357062757,-5429.91,0.00020273,2]
[371568007,1752357062766,-460.0,0.00020273,2]
[371568009,1752357062776,-460.0,0.00020273,2]
[371568011,1752357062786,-460.0,0.00020273,2]
[371568013,1752357062795,-460.0,0.00020273,2]
[371568014,1752357062804,-634.32,0.00020273,2]
[371568016,1752357062814,-1846.78,0.00020273,2]
[371568018,1752357062823,-151.0,0.00020274,2]
[371568020,1752357062832,-151.0,0.00020274,2]
[371568022,1752357062842,-151.0,0.00020274,2]
[371568024,1752357062852,-151.0,0.00020274,2]
[371568026,1752357062862,-151.0,0.00020274,2]
[371568028,1752357062871,-151.0,0.00020274,2]
[371568030,1752357062880,-151.0,0.00020274,2]
[371568032,1752357062889,-151.0,0.00020298,2]
[371568034,1752357062898,-151.0,0.00020298,2]
[371568036,1752357062908,-151.0,0.00020298,2]
[371568038,1752357062917,-151.0,0.00020298,2]
[371568040,1752357062926,-151.0,0.00020298,2]
[371568042,1752357062935,-151.0,0.00020298,2]
[371568044,1752357062944,-151.0,0.00020298,2]
[371568046,1752357062954,-151.0,0.00020298,2]
[371568047,1752357062964,-264.189425,0.00020298,2]
[371568049,1752357062973,-264.189425,0.00020298,2]
[371568051,1752357062982,-151.0,0.00020298,2]
[371568053,1752357062992,-151.0,0.00020298,2]
[371568055,1752357063001,-151.0,0.00020298,2]
[371568057,1752357063011,-3924.06288853,0.00020314,3]
[371568059,1752357063020,-160.0,0.0002032,3]
[371568061,1752357063030,-151.0,0.00020324,2]
[371568063,1752357063039,-1262.657327,0.00020324,2]
[371568065,1752357063048,-1262.657327,0.00020324,2]
[371568067,1752357063057,-479.491969,0.00020324,2]
[371568069,1752357063066,-479.491969,0.00020324,2]
[371568071,1752357063076,-215.0738,0.00020327,2]
[371568073,1752357063085,-151.0,0.000204,4]
[371568075,1752357063094,-5502.71686866,0.00020447,2]
[371568077,1752357063104,-1500.0,0.00020468,2]
[371568079,1752357063114,-1000.0,0.00020521,2]
[371568081,1752357063124,-1000.0,0.00020521,2]
[371568083,1752357063133,-460.0,0.00020547,2]
[371568085,1752357063142,-460.0,0.00020547,2]
[371568087,1752357063151,-598.62,0.00020547,2]
[371568088,1752357063160,-460.0,0.00020547,2]
[371568090,1752357063169,-460.0,0.00020547,2]
[371568092,1752357063179,-1796.12,0.00020547,2]
[371568094,1752357063188,-460.0,0.00020547,2]
[371568096,1752357063197,-1833.61,0.00020547,2]
[371568098,1752357063208,-460.0,0.00020547,2]
[371568100,1752357063219,-417.9,0.00020547,2]
[371568102,1752357063229,-3698.67,0.00020547,2]
[371568104,1752357063238,-726.0,0.00020547,2]
[371568106,1752357063247,-2274.87,0.00020547,2]
[371568108,1752357063257,-699.31,0.00020547,2]
[371568110,1752357063269,-995.78,0.00020547,2]
[371568112,1752357063279,-460.0,0.00020547,2]
[371568114,1752357063289,-460.0,0.00020547,2]
[371568116,1752357063299,-648.79,0.00020547,2]
[371568118,1752357063308,-647.47,0.00020547,2]
[371568120,1752357063318,-1247.94,0.00020547,2]
[371568122,1752357063327,-813.18,0.00020547,2]
[371568124,1752357063337,-460.0,0.00020547,2]
[371568126,1752357063348,-561.31,0.00020547,2]
[371568128,1752357063357,-460.31,0.00020547,2]
[371568130,1752357063366,-470.2,0.00020547,2]
[371568132,1752357063376,-3681.33,0.00020547,2]
[371568134,1752357063385,-3587.3,0.00020547,2]
[371568136,1752357063395,-479.83,0.00020547,2]
[371568137,1752357063405,-2620.87,0.00020547,2]
[371568139,1752357063415,-666.55,0.00020547,2]
[371568141,1752357063424,-513.37,0.00020547,2]
[371568143,1752357063434,-2216.81,0.00020547,2]
[371568146,1752357063444,-518.4,0.00020547,2]
[371568147,1752357063454,-460.0,0.00020547,2]
[371568149,1752357063464,-548.97,0.00020547,2]
[371568151,1752357063474,-460.0,0.00020547,2]
[371568153,1752357063483,-605.1,0.00020547,2]
[371568155,1752357063492,-3142.18,0.00020547,2]
[371568157,1752357063501,-460.0,0.00020547,2]
[371568159,1752357063511,-460.0,0.00020547,2]
[371568161,1752357063521,-5920.24,0.00020547,2]
[371568163,1752357063529,-875.58,0.00020547,2]
[371568165,1752357063539,-556.21,0.00020547,2]
[371568167,1752357063548,-5429.91,0.00020547,2]
[371568169,1752357063557,-460.0,0.00020547,2]
[371568171,1752357063566,-460.0,0.00020547,2]
[371568173,1752357063576,-460.0,0.00020547,2]
[371568175,1752357063585,-460.0,0.00020547,2]
[371568176,1752357063594,-634.32,0.00020547,2]
[371568178,1752357063604,-1846.78,0.00020547,2]
[371568180,1752357063613,-151.0,0.00020549,2]
[371568181,1752357063622,-151.0,0.00020549,2]
[371568182,1752357063632,-151.0,0.00020549,2]
[371568183,1752357063642,-368.105322,0.00020549,2]
[371568184,1752357063651,-368.105322,0.00020549,2]